[Event "Early-Titled-Tuesday-Blitz-May-28-2024"]
[Site "Chess.com"]
[Date "2024.05.28"]
[Round "11"]
[White "AldokhinIvan"]
[Black "Giantgoogachess"]
[Result "1-0"]
[WhiteElo "2626"]
[BlackElo "2397"]
[TimeControl "180+1"]
[EndTime "10:05:23 PDT"]
[Termination "AldokhinIvan won by checkmate"]

1. e4 {[%clk 0:03:00.9]} 1... c5 {[%clk 0:02:58.2]} 2. Nf3 {[%clk 0:03:01.1]}
2... e6 {[%clk 0:02:58.1]} 3. d4 {[%clk 0:03:01.3]} 3... cxd4 {[%clk 0:02:59]}
4. Nxd4 {[%clk 0:03:02.2]} 4... a6 {[%clk 0:02:59.7]} 5. Nc3 {[%clk 0:03:02.7]}
5... b5 {[%clk 0:02:59.5]} 6. Bd3 {[%clk 0:03:02.6]} 6... Bb7 {[%clk 0:03:00]}
7. Bd2 {[%clk 0:03:02.7]} 7... Nf6 {[%clk 0:02:59.1]} 8. Qe2 {[%clk 0:03:02.1]}
8... Qc7 {[%clk 0:02:59.5]} 9. a4 {[%clk 0:03:02]} 9... b4 {[%clk 0:02:57.8]}
10. Na2 {[%clk 0:03:02.4]} 10... d5 {[%clk 0:02:46.3]} 11. exd5 {[%clk
0:03:01.4]} 11... Nxd5 {[%clk 0:02:45.3]} 12. O-O {[%clk 0:02:52.7]} 12... Bd6
{[%clk 0:02:43.8]} 13. g3 {[%clk 0:02:52.6]} 13... O-O {[%clk 0:02:43.6]} 14. c4
{[%clk 0:02:52.6]} 14... bxc3 {[%clk 0:02:42.5]} 15. Nxc3 {[%clk 0:02:52.9]}
15... Nd7 {[%clk 0:02:39.7]} 16. Nxe6 {[%clk 0:02:28.1]} 16... fxe6 {[%clk
0:02:16.8]} 17. Qxe6+ {[%clk 0:02:24.9]} 17... Kh8 {[%clk 0:02:16.5]} 18. Nxd5
{[%clk 0:02:22.4]} 18... Qc6 {[%clk 0:02:17]} 19. Qe4 {[%clk 0:01:59.8]} 19...
g6 {[%clk 0:01:51]} 20. Bc3+ {[%clk 0:01:56.8]} 20... Kg8 {[%clk 0:01:48.8]} 21.
Bc4 {[%clk 0:01:48.8]} 21... Nc5 {[%clk 0:01:37.1]} 22. Ne7# {[%clk 0:01:46.6]}
1-0

[Event "Early-Titled-Tuesday-Blitz-May-28-2024"]
[Site "Chess.com"]
[Date "2024.05.28"]
[Round "11"]
[White "MikeSailer"]
[Black "VacheH009"]
[Result "0-1"]
[WhiteElo "2114"]
[BlackElo "2551"]
[TimeControl "180+1"]
[EndTime "10:05:23 PDT"]
[Termination "VacheH009 won by resignation"]

1. d4 {[%clk 0:03:00.2]} 1... Nf6 {[%clk 0:02:58.4]} 2. g3 {[%clk 0:03:00.8]}
2... g6 {[%clk 0:02:56.3]} 3. Bg2 {[%clk 0:03:01.6]} 3... Bg7 {[%clk 0:02:56.9]}
4. Nf3 {[%clk 0:03:02.4]} 4... O-O {[%clk 0:02:57.5]} 5. O-O {[%clk 0:03:03.3]}
5... d6 {[%clk 0:02:57.1]} 6. c4 {[%clk 0:03:04.1]} 6... Nc6 {[%clk 0:02:57.2]}
7. Nc3 {[%clk 0:03:04.9]} 7... a6 {[%clk 0:02:56.8]} 8. Re1 {[%clk 0:03:02.4]}
8... Rb8 {[%clk 0:02:52.7]} 9. a4 {[%clk 0:03:01.2]} 9... a5 {[%clk 0:02:43]}
10. Nb5 {[%clk 0:02:58.3]} 10... Nb4 {[%clk 0:02:42.1]} 11. e4 {[%clk
0:02:51.1]} 11... c6 {[%clk 0:02:41.2]} 12. Nc3 {[%clk 0:02:48.4]} 12... Bg4
{[%clk 0:02:38]} 13. h3 {[%clk 0:02:48]} 13... Bxf3 {[%clk 0:02:37.4]} 14. Bxf3
{[%clk 0:02:48]} 14... e5 {[%clk 0:02:38.2]} 15. dxe5 {[%clk 0:02:39]} 15...
dxe5 {[%clk 0:02:39.1]} 16. Be3 {[%clk 0:02:35.7]} 16... Qc7 {[%clk 0:02:36.4]}
17. Qe2 {[%clk 0:02:31.9]} 17... Rfd8 {[%clk 0:02:26.2]} 18. Bc5 {[%clk
0:02:26.4]} 18... Nd7 {[%clk 0:02:18.2]} 19. Be3 {[%clk 0:02:19.2]} 19... Nf8
{[%clk 0:02:15.2]} 20. Rad1 {[%clk 0:02:14.8]} 20... Ne6 {[%clk 0:02:13.2]} 21.
Bg4 {[%clk 0:02:05.3]} 21... Nd4 {[%clk 0:02:11.3]} 22. Bxd4 {[%clk 0:02:00.7]}
22... exd4 {[%clk 0:02:10.9]} 23. Nb1 {[%clk 0:01:58.9]} 23... d3 {[%clk
0:02:10.7]} 24. Qd2 {[%clk 0:01:55.2]} 24... Bd4 {[%clk 0:01:44.3]} 25. Nc3
{[%clk 0:01:54.6]} 25... Qxg3+ {[%clk 0:01:43.1]} 0-1

[Event "Early-Titled-Tuesday-Blitz-May-28-2024"]
[Site "Chess.com"]
[Date "2024.05.28"]
[Round "11"]
[White "zverr1"]
[Black "Connectedcloud"]
[Result "1-0"]
[WhiteElo "2585"]
[BlackElo "2214"]
[TimeControl "180+1"]
[EndTime "10:05:24 PDT"]
[Termination "zverr1 won by resignation"]

1. e4 {[%clk 0:02:56.1]} 1... c5 {[%clk 0:02:59.3]} 2. Nf3 {[%clk 0:02:55.7]}
2... d6 {[%clk 0:02:59.7]} 3. Nc3 {[%clk 0:02:54.5]} 3... Nf6 {[%clk 0:02:59.5]}
4. e5 {[%clk 0:02:54.4]} 4... dxe5 {[%clk 0:02:59.1]} 5. Nxe5 {[%clk 0:02:55.1]}
5... e6 {[%clk 0:02:56.7]} 6. Bb5+ {[%clk 0:02:54.4]} 6... Nbd7 {[%clk
0:02:56.4]} 7. d4 {[%clk 0:02:54]} 7... a6 {[%clk 0:02:53.4]} 8. Bxd7+ {[%clk
0:02:45.9]} 8... Nxd7 {[%clk 0:02:52.5]} 9. Qf3 {[%clk 0:02:44]} 9... Nxe5
{[%clk 0:02:51.3]} 10. dxe5 {[%clk 0:02:44.9]} 10... Be7 {[%clk 0:02:49.4]} 11.
Bf4 {[%clk 0:02:37.8]} 11... O-O {[%clk 0:02:49.1]} 12. Ne4 {[%clk 0:02:36.5]}
12... Bd7 {[%clk 0:02:46]} 13. Nd6 {[%clk 0:02:32.4]} 13... Bxd6 {[%clk
0:02:45.5]} 14. exd6 {[%clk 0:02:32.1]} 14... e5 {[%clk 0:02:42.1]} 15. Bg3
{[%clk 0:02:24.1]} 15... Bc6 {[%clk 0:02:40.7]} 16. Qd3 {[%clk 0:02:24.3]} 16...
e4 {[%clk 0:02:14.2]} 17. Qd2 {[%clk 0:02:15.5]} 17... f5 {[%clk 0:02:01.5]} 18.
Bf4 {[%clk 0:02:07.6]} 18... Qf6 {[%clk 0:01:53.5]} 19. O-O-O {[%clk 0:02:02.4]}
19... Rad8 {[%clk 0:01:53.9]} 20. Bg5 {[%clk 0:01:59.9]} 20... Qe6 {[%clk
0:01:54]} 21. Bxd8 {[%clk 0:01:57]} 21... Qxa2 {[%clk 0:01:45.7]} 22. Qa5 {[%clk
0:01:55.9]} 22... Qc4 {[%clk 0:01:40.6]} 23. Be7 {[%clk 0:01:48.4]} 23... Ra8
{[%clk 0:01:37.2]} 24. d7 {[%clk 0:01:47]} 1-0

[Event "Early-Titled-Tuesday-Blitz-May-28-2024"]
[Site "Chess.com"]
[Date "2024.05.28"]
[Round "11"]
[White "Kacparov"]
[Black "CarlosjPineror"]
[Result "1/2-1/2"]
[WhiteElo "2940"]
[BlackElo "2772"]
[TimeControl "180+1"]
[EndTime "10:05:25 PDT"]
[Termination "Game drawn by repetition"]

1. e4 {[%clk 0:03:00.9]} 1... c5 {[%clk 0:02:59.8]} 2. Nf3 {[%clk 0:03:01.1]}
2... e6 {[%clk 0:03:00.3]} 3. d4 {[%clk 0:03:00.3]} 3... cxd4 {[%clk 0:03:01.2]}
4. Nxd4 {[%clk 0:03:00.4]} 4... a6 {[%clk 0:03:01.8]} 5. Bd3 {[%clk 0:03:00.4]}
5... Qc7 {[%clk 0:03:02.3]} 6. O-O {[%clk 0:03:00.3]} 6... Nf6 {[%clk 0:03:03]}
7. Qe2 {[%clk 0:03:00.3]} 7... d6 {[%clk 0:03:03.5]} 8. c4 {[%clk 0:03:00.6]}
8... Be7 {[%clk 0:03:04.1]} 9. Nc3 {[%clk 0:03:01.2]} 9... Nbd7 {[%clk
0:03:04.5]} 10. b3 {[%clk 0:03:00.8]} 10... b6 {[%clk 0:03:05]} 11. Bb2 {[%clk
0:03:01.1]} 11... Bb7 {[%clk 0:03:05.7]} 12. Rac1 {[%clk 0:03:00.2]} 12... O-O
{[%clk 0:03:06.3]} 13. Bb1 {[%clk 0:03:00.5]} 13... Rac8 {[%clk 0:03:07]} 14.
Rfd1 {[%clk 0:03:00.6]} 14... Qb8 {[%clk 0:03:07.6]} 15. h3 {[%clk 0:02:58.7]}
15... Bd8 {[%clk 0:03:08.1]} 16. Nf3 {[%clk 0:02:57.5]} 16... Bc7 {[%clk
0:03:08.3]} 17. Qe3 {[%clk 0:02:56]} 17... Rfd8 {[%clk 0:03:08.4]} 18. Qg5
{[%clk 0:02:53.9]} 18... h6 {[%clk 0:03:07.9]} 19. Qe3 {[%clk 0:02:46.8]} 19...
Ne5 {[%clk 0:03:07.7]} 20. Nd4 {[%clk 0:02:45.2]} 20... Ned7 {[%clk 0:03:06.8]}
21. Nde2 {[%clk 0:02:42.4]} 21... Re8 {[%clk 0:02:57]} 22. Qd2 {[%clk
0:02:38.5]} 22... Rcd8 {[%clk 0:02:56.2]} 23. Re1 {[%clk 0:02:29.7]} 23... Nc5
{[%clk 0:02:56.4]} 24. Nd4 {[%clk 0:01:40.7]} 24... Qa8 {[%clk 0:02:54.6]} 25.
Qe3 {[%clk 0:01:32.5]} 25... Qb8 {[%clk 0:02:55]} 26. Rcd1 {[%clk 0:01:30.4]}
26... Ncd7 {[%clk 0:02:54.6]} 27. Qc1 {[%clk 0:01:28.7]} 27... Nc5 {[%clk
0:02:54.3]} 28. Nf3 {[%clk 0:01:24.9]} 28... Qa8 {[%clk 0:02:53.3]} 29. Qe3
{[%clk 0:01:23.4]} 29... Ncd7 {[%clk 0:02:52.7]} 30. a3 {[%clk 0:01:20.9]} 30...
Qb8 {[%clk 0:02:52.4]} 31. b4 {[%clk 0:01:20.5]} 31... Rc8 {[%clk 0:02:49.3]}
32. Qe2 {[%clk 0:01:18.3]} 32... Red8 {[%clk 0:02:49]} 33. Ba2 {[%clk
0:01:16.7]} 33... Re8 {[%clk 0:02:34.8]} 34. Bb1 {[%clk 0:01:16.9]} 34... Red8
{[%clk 0:02:34.6]} 35. Ba2 {[%clk 0:01:17.2]} 35... Re8 {[%clk 0:02:34.7]} 36.
Bb1 {[%clk 0:01:15.5]} 1/2-1/2

[Event "Early-Titled-Tuesday-Blitz-May-28-2024"]
[Site "Chess.com"]
[Date "2024.05.28"]
[Round "11"]
[White "rookpower2004"]
[Black "DarZay"]
[Result "1-0"]
[WhiteElo "2477"]
[BlackElo "2307"]
[TimeControl "180+1"]
[EndTime "10:05:29 PDT"]
[Termination "rookpower2004 won by checkmate"]

1. e4 {[%clk 0:03:00.9]} 1... c5 {[%clk 0:02:53.5]} 2. Nf3 {[%clk 0:02:59.7]}
2... Nc6 {[%clk 0:02:50.9]} 3. d4 {[%clk 0:02:58.8]} 3... cxd4 {[%clk
0:02:50.9]} 4. Nxd4 {[%clk 0:02:57.3]} 4... Nf6 {[%clk 0:02:50.9]} 5. Nc3 {[%clk
0:02:55.9]} 5... d6 {[%clk 0:02:51]} 6. f4 {[%clk 0:02:53.8]} 6... e5 {[%clk
0:02:43.9]} 7. Nf3 {[%clk 0:02:52.6]} 7... Bg4 {[%clk 0:02:40.4]} 8. Bd3 {[%clk
0:02:51.5]} 8... Nd4 {[%clk 0:02:36.6]} 9. Be3 {[%clk 0:02:48.3]} 9... Nxf3+
{[%clk 0:02:33.3]} 10. gxf3 {[%clk 0:02:46.2]} 10... Bh3 {[%clk 0:02:33.2]} 11.
Qe2 {[%clk 0:02:42.4]} 11... exf4 {[%clk 0:02:24.8]} 12. Bxf4 {[%clk 0:02:41.5]}
12... Qb6 {[%clk 0:02:22.9]} 13. O-O-O {[%clk 0:02:38.7]} 13... Be7 {[%clk
0:02:20.7]} 14. Bb5+ {[%clk 0:02:35.4]} 14... Bd7 {[%clk 0:02:17.7]} 15. Bxd7+
{[%clk 0:02:31.6]} 15... Nxd7 {[%clk 0:02:14.2]} 16. Nd5 {[%clk 0:02:31.6]}
16... Qd8 {[%clk 0:01:57.3]} 17. Nxe7 {[%clk 0:02:29.5]} 17... Qxe7 {[%clk
0:01:57.1]} 18. Bxd6 {[%clk 0:02:27.2]} 18... Qg5+ {[%clk 0:01:56.6]} 19. f4
{[%clk 0:02:26.5]} 19... Qa5 {[%clk 0:01:56.5]} 20. Qc4 {[%clk 0:02:18.8]} 20...
Nb6 {[%clk 0:01:51.7]} 21. Qb3 {[%clk 0:02:17.7]} 21... O-O-O {[%clk 0:01:50.3]}
22. Rd3 {[%clk 0:02:12]} 22... Rhe8 {[%clk 0:01:42.8]} 23. Rc3+ {[%clk
0:02:08.6]} 23... Kd7 {[%clk 0:01:35.6]} 24. Qxf7+ {[%clk 0:02:05.3]} 24... Kxd6
{[%clk 0:01:32]} 25. Rd1+ {[%clk 0:02:05.9]} 25... Nd5 {[%clk 0:01:31]} 26.
Rxd5+ {[%clk 0:02:05.7]} 26... Qxd5 {[%clk 0:01:30.7]} 27. Qxd5+ {[%clk
0:02:06.6]} 27... Ke7 {[%clk 0:01:30.7]} 28. Rc7+ {[%clk 0:02:06.1]} 28... Kf6
{[%clk 0:01:30.7]} 29. Qf5# {[%clk 0:02:05.5]} 1-0

[Event "Early-Titled-Tuesday-Blitz-May-28-2024"]
[Site "Chess.com"]
[Date "2024.05.28"]
[Round "11"]
[White "GOGIEFF"]
[Black "francyIM"]
[Result "1-0"]
[WhiteElo "3014"]
[BlackElo "2824"]
[TimeControl "180+1"]
[EndTime "10:05:40 PDT"]
[Termination "GOGIEFF won by resignation"]

1. d4 {[%clk 0:03:00.9]} 1... Nf6 {[%clk 0:02:58]} 2. c4 {[%clk 0:03:00.3]} 2...
g6 {[%clk 0:02:52.7]} 3. Nc3 {[%clk 0:02:59.6]} 3... Bg7 {[%clk 0:02:52.5]} 4.
e4 {[%clk 0:02:59.2]} 4... d6 {[%clk 0:02:53]} 5. Be2 {[%clk 0:02:59]} 5... O-O
{[%clk 0:02:52.9]} 6. Bg5 {[%clk 0:02:59.5]} 6... c5 {[%clk 0:02:52.9]} 7. d5
{[%clk 0:02:59.8]} 7... h6 {[%clk 0:02:49]} 8. Be3 {[%clk 0:02:58.8]} 8... e6
{[%clk 0:02:49.3]} 9. Nf3 {[%clk 0:02:58.6]} 9... exd5 {[%clk 0:02:47.2]} 10.
cxd5 {[%clk 0:02:59.5]} 10... Bg4 {[%clk 0:02:40.7]} 11. O-O {[%clk 0:02:57.2]}
11... Bxf3 {[%clk 0:02:40.8]} 12. Bxf3 {[%clk 0:02:57.1]} 12... Nbd7 {[%clk
0:02:41.4]} 13. a4 {[%clk 0:02:56.6]} 13... Re8 {[%clk 0:02:37.1]} 14. Qc2
{[%clk 0:02:56.6]} 14... a6 {[%clk 0:02:33.9]} 15. h3 {[%clk 0:02:55.6]} 15...
Rc8 {[%clk 0:02:32.9]} 16. a5 {[%clk 0:02:52.2]} 16... c4 {[%clk 0:02:27.7]} 17.
Ra4 {[%clk 0:02:46.7]} 17... Ne5 {[%clk 0:02:22.2]} 18. Be2 {[%clk 0:02:46.5]}
18... Nfd7 {[%clk 0:02:21.5]} 19. f4 {[%clk 0:02:37.5]} 19... Nd3 {[%clk
0:02:21.5]} 20. Bxd3 {[%clk 0:02:37.7]} 20... cxd3 {[%clk 0:02:19.4]} 21. Qxd3
{[%clk 0:02:38]} 21... Nc5 {[%clk 0:02:20.3]} 22. Bxc5 {[%clk 0:02:34.8]} 22...
Rxc5 {[%clk 0:02:19.1]} 23. e5 {[%clk 0:02:35.2]} 23... dxe5 {[%clk 0:02:19.4]}
24. f5 {[%clk 0:02:35.6]} 24... e4 {[%clk 0:02:19.1]} 25. Rxe4 {[%clk
0:02:30.9]} 25... Rxe4 {[%clk 0:02:12.6]} 26. Qxe4 {[%clk 0:02:30.3]} 26... Bxc3
{[%clk 0:02:12.2]} 27. fxg6 {[%clk 0:02:21.8]} 27... Bf6 {[%clk 0:01:34.8]} 28.
gxf7+ {[%clk 0:02:18.3]} 28... Kg7 {[%clk 0:01:32.7]} 29. Qe8 {[%clk 0:02:11.1]}
1-0

[Event "Early-Titled-Tuesday-Blitz-May-28-2024"]
[Site "Chess.com"]
[Date "2024.05.28"]
[Round "11"]
[White "eightbyeightchess"]
[Black "campochess"]
[Result "0-1"]
[WhiteElo "2364"]
[BlackElo "2132"]
[TimeControl "180+1"]
[EndTime "10:06:13 PDT"]
[Termination "campochess won by resignation"]

1. e4 {[%clk 0:01:43.6]} 1... c5 {[%clk 0:02:56.2]} 2. Nf3 {[%clk 0:01:43.1]}
2... Nc6 {[%clk 0:02:56]} 3. d4 {[%clk 0:01:43.7]} 3... cxd4 {[%clk 0:02:55.4]}
4. c3 {[%clk 0:01:44.3]} 4... Nf6 {[%clk 0:02:53.4]} 5. e5 {[%clk 0:01:44.1]}
5... Nd5 {[%clk 0:02:53.4]} 6. cxd4 {[%clk 0:01:42.4]} 6... d6 {[%clk
0:02:53.3]} 7. exd6 {[%clk 0:01:41.8]} 7... e6 {[%clk 0:02:52.6]} 8. Bd3 {[%clk
0:01:41.4]} 8... Bxd6 {[%clk 0:02:52]} 9. O-O {[%clk 0:01:41.8]} 9... O-O {[%clk
0:02:50.6]} 10. Nc3 {[%clk 0:01:37]} 10... Nxc3 {[%clk 0:02:49]} 11. bxc3 {[%clk
0:01:35.4]} 11... h6 {[%clk 0:02:45]} 12. Rb1 {[%clk 0:01:33.6]} 12... Rb8
{[%clk 0:02:41.3]} 13. Qe2 {[%clk 0:01:29.4]} 13... Qf6 {[%clk 0:02:33.3]} 14.
Qe4 {[%clk 0:01:15.1]} 14... Qf5 {[%clk 0:02:26.3]} 15. Qxf5 {[%clk 0:01:06.8]}
15... exf5 {[%clk 0:02:25.6]} 16. Rb5 {[%clk 0:00:54.2]} 16... Ne7 {[%clk
0:02:23.2]} 17. Re1 {[%clk 0:00:45.5]} 17... b6 {[%clk 0:02:18.8]} 18. Nh4
{[%clk 0:00:15.4]} 18... Ba6 {[%clk 0:02:15.5]} 19. Nxf5 {[%clk 0:00:13]} 19...
Nxf5 {[%clk 0:02:11.6]} 0-1

[Event "Early-Titled-Tuesday-Blitz-May-28-2024"]
[Site "Chess.com"]
[Date "2024.05.28"]
[Round "11"]
[White "romulocardoso"]
[Black "FischerKasparow"]
[Result "1-0"]
[WhiteElo "2316"]
[BlackElo "2100"]
[TimeControl "180+1"]
[EndTime "10:06:19 PDT"]
[Termination "romulocardoso won on time"]

1. e4 {[%clk 0:03:00.9]} 1... c5 {[%clk 0:01:51.1]} 2. Nf3 {[%clk 0:02:50.9]}
2... d6 {[%clk 0:01:48.2]} 3. d4 {[%clk 0:02:51.3]} 3... Nf6 {[%clk 0:01:46.6]}
4. e5 {[%clk 0:02:51.2]} 4... dxe5 {[%clk 0:01:43.2]} 5. Bb5+ {[%clk 0:02:51.6]}
5... Nbd7 {[%clk 0:01:36.4]} 6. dxe5 {[%clk 0:02:51.1]} 6... Qa5+ {[%clk
0:01:31.9]} 7. Nc3 {[%clk 0:02:50.5]} 7... Ne4 {[%clk 0:01:30.5]} 8. e6 {[%clk
0:02:49.3]} 8... fxe6 {[%clk 0:01:21.5]} 9. Ne5 {[%clk 0:02:49]} 9... Nxc3
{[%clk 0:00:45.9]} 10. Bxd7+ {[%clk 0:02:48.4]} 10... Kd8 {[%clk 0:00:42.5]} 11.
Nf7+ {[%clk 0:02:48.7]} 11... Kc7 {[%clk 0:00:36.2]} 12. Bf4+ {[%clk 0:02:48.9]}
12... Kb6 {[%clk 0:00:26.7]} 13. bxc3 {[%clk 0:02:44]} 13... Qxc3+ {[%clk
0:00:25.3]} 14. Ke2 {[%clk 0:02:37.2]} 14... Qc4+ {[%clk 0:00:14.1]} 15. Kf3
{[%clk 0:02:37.5]} 15... Qd4 {[%clk 0:00:13.4]} 16. Rb1+ {[%clk 0:02:34.3]}
16... Ka5 {[%clk 0:00:03.2]} 17. Qe1+ {[%clk 0:02:28.3]} 17... Ka6 {[%clk
0:00:01.1]} 18. Qxe6+ {[%clk 0:02:19.3]} 1-0

[Event "Early-Titled-Tuesday-Blitz-May-28-2024"]
[Site "Chess.com"]
[Date "2024.05.28"]
[Round "11"]
[White "UK_23"]
[Black "ChessShop"]
[Result "1/2-1/2"]
[WhiteElo "2418"]
[BlackElo "2640"]
[TimeControl "180+1"]
[EndTime "10:06:20 PDT"]
[Termination "Game drawn by repetition"]

1. e4 {[%clk 0:02:56.3]} 1... e5 {[%clk 0:02:59.8]} 2. Nf3 {[%clk 0:02:55.9]}
2... d6 {[%clk 0:03:00.3]} 3. d4 {[%clk 0:02:55.9]} 3... exd4 {[%clk 0:03:01.2]}
4. Nxd4 {[%clk 0:02:56.5]} 4... Nf6 {[%clk 0:03:01.8]} 5. Nc3 {[%clk 0:02:56.9]}
5... Be7 {[%clk 0:03:02.5]} 6. g3 {[%clk 0:02:56.3]} 6... O-O {[%clk 0:03:02.9]}
7. Bg2 {[%clk 0:02:56.7]} 7... Re8 {[%clk 0:03:03.8]} 8. O-O {[%clk 0:02:56.8]}
8... Nbd7 {[%clk 0:03:04.5]} 9. Re1 {[%clk 0:02:56.3]} 9... Ne5 {[%clk
0:03:05.1]} 10. h3 {[%clk 0:02:56.2]} 10... c6 {[%clk 0:03:05.5]} 11. a4 {[%clk
0:02:52.9]} 11... Bf8 {[%clk 0:03:05.1]} 12. f4 {[%clk 0:02:48.1]} 12... Ng6
{[%clk 0:03:04.8]} 13. Qd3 {[%clk 0:02:48]} 13... Qc7 {[%clk 0:03:02.4]} 14. Bd2
{[%clk 0:02:46.8]} 14... Bd7 {[%clk 0:03:02.6]} 15. Rad1 {[%clk 0:02:44.9]}
15... Rad8 {[%clk 0:03:02.4]} 16. Kh2 {[%clk 0:02:44.6]} 16... a6 {[%clk
0:02:58.5]} 17. a5 {[%clk 0:02:40]} 17... c5 {[%clk 0:02:55.4]} 18. Nf5 {[%clk
0:02:36.7]} 18... Bc6 {[%clk 0:02:55.4]} 19. Nd5 {[%clk 0:02:33.4]} 19... Nxd5
{[%clk 0:02:55.3]} 20. exd5 {[%clk 0:02:33.7]} 20... Bd7 {[%clk 0:02:55.7]} 21.
c4 {[%clk 0:02:31.2]} 21... Qc8 {[%clk 0:02:47.2]} 22. Ne3 {[%clk 0:02:13.4]}
22... h5 {[%clk 0:02:46.5]} 23. h4 {[%clk 0:02:12.3]} 23... Ne7 {[%clk
0:02:44.3]} 24. Bf3 {[%clk 0:02:06.5]} 24... g6 {[%clk 0:02:42.8]} 25. Bc3
{[%clk 0:02:04.6]} 25... Nf5 {[%clk 0:02:42.3]} 26. Nxf5 {[%clk 0:02:01.5]}
26... Bxf5 {[%clk 0:02:42.3]} 27. Qd2 {[%clk 0:02:01.6]} 27... Rxe1 {[%clk
0:02:40.1]} 28. Rxe1 {[%clk 0:02:01.6]} 28... Re8 {[%clk 0:02:40.5]} 29. Kg2
{[%clk 0:01:51.3]} 29... Qd7 {[%clk 0:02:32.9]} 30. Kf2 {[%clk 0:01:50.3]} 30...
Bg7 {[%clk 0:02:16.8]} 31. Bxg7 {[%clk 0:01:48.7]} 31... Kxg7 {[%clk 0:02:17.7]}
32. Qc3+ {[%clk 0:01:48.1]} 32... f6 {[%clk 0:02:17.8]} 33. b3 {[%clk
0:01:47.7]} 33... Re7 {[%clk 0:02:16.5]} 34. Re3 {[%clk 0:01:42.2]} 34... Qe8
{[%clk 0:02:15.8]} 35. Bd1 {[%clk 0:01:41.9]} 35... Bg4 {[%clk 0:02:08.9]} 36.
Bxg4 {[%clk 0:01:39.6]} 36... hxg4 {[%clk 0:02:08.5]} 37. Rxe7+ {[%clk
0:01:38.2]} 37... Qxe7 {[%clk 0:02:08.5]} 38. Qe3 {[%clk 0:01:39.1]} 38... Qd7
{[%clk 0:01:57.1]} 39. Ke2 {[%clk 0:01:29.7]} 39... Qf5 {[%clk 0:01:50.1]} 40.
Qe7+ {[%clk 0:01:28.5]} 40... Kh6 {[%clk 0:01:50.3]} 41. Qf8+ {[%clk 0:01:25.3]}
41... Kh7 {[%clk 0:01:50.3]} 42. Qf7+ {[%clk 0:01:25.6]} 42... Kh6 {[%clk
0:01:50.7]} 43. Qf8+ {[%clk 0:01:26]} 43... Kh7 {[%clk 0:01:51.1]} 44. Qf7+
{[%clk 0:01:26.4]} 44... Kh6 {[%clk 0:01:51.5]} 45. Qf8+ {[%clk 0:01:26.1]}
1/2-1/2

[Event "Early-Titled-Tuesday-Blitz-May-28-2024"]
[Site "Chess.com"]
[Date "2024.05.28"]
[Round "11"]
[White "Kumi29"]
[Black "Goryachkina"]
[Result "0-1"]
[WhiteElo "2568"]
[BlackElo "2688"]
[TimeControl "180+1"]
[EndTime "10:06:26 PDT"]
[Termination "Goryachkina won by resignation"]

1. d4 {[%clk 0:03:00.9]} 1... Nf6 {[%clk 0:02:59.7]} 2. Bg5 {[%clk 0:03:00.9]}
2... g6 {[%clk 0:02:57.1]} 3. Bxf6 {[%clk 0:03:01.1]} 3... exf6 {[%clk
0:02:57.3]} 4. c4 {[%clk 0:03:01.5]} 4... d5 {[%clk 0:02:56.4]} 5. cxd5 {[%clk
0:03:01.1]} 5... Qxd5 {[%clk 0:02:56.7]} 6. Nc3 {[%clk 0:03:01.7]} 6... Qd8
{[%clk 0:02:56.9]} 7. g3 {[%clk 0:03:01.9]} 7... Bd6 {[%clk 0:02:55.5]} 8. Bg2
{[%clk 0:03:02.1]} 8... O-O {[%clk 0:02:55.5]} 9. e3 {[%clk 0:03:02.6]} 9... c6
{[%clk 0:02:52.7]} 10. Nge2 {[%clk 0:03:02.7]} 10... h5 {[%clk 0:02:49.8]} 11.
h4 {[%clk 0:03:01.8]} 11... Re8 {[%clk 0:02:48.3]} 12. Qd3 {[%clk 0:03:00.6]}
12... Nd7 {[%clk 0:02:47.5]} 13. O-O {[%clk 0:02:57.9]} 13... f5 {[%clk
0:02:43.7]} 14. a3 {[%clk 0:02:57.5]} 14... a5 {[%clk 0:02:42]} 15. d5 {[%clk
0:02:48.1]} 15... Ne5 {[%clk 0:02:32.7]} 16. Qc2 {[%clk 0:02:45.5]} 16... c5
{[%clk 0:02:16.8]} 17. Rfd1 {[%clk 0:02:44.8]} 17... Bd7 {[%clk 0:02:15.1]} 18.
Nf4 {[%clk 0:02:38.6]} 18... Ng4 {[%clk 0:02:11.3]} 19. a4 {[%clk 0:02:34.3]}
19... g5 {[%clk 0:02:00.6]} 20. Nxh5 {[%clk 0:02:07.2]} 20... gxh4 {[%clk
0:01:58.7]} 21. Nb5 {[%clk 0:02:07.9]} 21... hxg3 {[%clk 0:01:54.7]} 22. Nxd6
{[%clk 0:01:59.1]} 22... gxf2+ {[%clk 0:01:51.7]} 23. Qxf2 {[%clk 0:01:41.3]}
23... Nxf2 {[%clk 0:01:51.1]} 24. Nxe8 {[%clk 0:01:41.8]} 24... Ng4 {[%clk
0:01:34.7]} 25. Nd6 {[%clk 0:01:33.1]} 25... Qh4 {[%clk 0:01:31.9]} 26. Nf4
{[%clk 0:01:33.5]} 26... Qh2+ {[%clk 0:01:31]} 27. Kf1 {[%clk 0:01:33.8]} 27...
Nxe3+ {[%clk 0:01:30.9]} 28. Ke2 {[%clk 0:01:30.4]} 28... Nxd1 {[%clk
0:01:29.8]} 29. Rxd1 {[%clk 0:01:30.4]} 29... Qxf4 {[%clk 0:01:29.5]} 30. Nxb7
{[%clk 0:01:22.1]} 30... Re8+ {[%clk 0:01:26.1]} 31. Kd3 {[%clk 0:01:21.5]}
31... Qd4+ {[%clk 0:01:23.1]} 0-1

[Event "Early-Titled-Tuesday-Blitz-May-28-2024"]
[Site "Chess.com"]
[Date "2024.05.28"]
[Round "11"]
[White "gpsji27"]
[Black "Szachulec75"]
[Result "1-0"]
[WhiteElo "2302"]
[BlackElo "2178"]
[TimeControl "180+1"]
[EndTime "10:06:31 PDT"]
[Termination "gpsji27 won by resignation"]

1. d4 {[%clk 0:03:00.9]} 1... Nf6 {[%clk 0:02:51]} 2. Nf3 {[%clk 0:03:01.6]}
2... g6 {[%clk 0:02:50.4]} 3. c4 {[%clk 0:03:00.3]} 3... Bg7 {[%clk 0:02:51.3]}
4. Nc3 {[%clk 0:03:00.8]} 4... d6 {[%clk 0:02:47.5]} 5. Bg5 {[%clk 0:03:00.6]}
5... O-O {[%clk 0:02:47.8]} 6. e3 {[%clk 0:02:57.5]} 6... Nbd7 {[%clk
0:02:47.5]} 7. Be2 {[%clk 0:02:55.4]} 7... e5 {[%clk 0:02:30]} 8. O-O {[%clk
0:02:30.4]} 8... c6 {[%clk 0:02:29]} 9. Qc2 {[%clk 0:02:16]} 9... Qc7 {[%clk
0:02:28.6]} 10. Rfd1 {[%clk 0:02:14.1]} 10... Re8 {[%clk 0:02:28.6]} 11. Rac1
{[%clk 0:02:13.9]} 11... a5 {[%clk 0:02:27.7]} 12. dxe5 {[%clk 0:02:14.5]} 12...
dxe5 {[%clk 0:02:26.5]} 13. a3 {[%clk 0:02:15]} 13... Nc5 {[%clk 0:02:23.2]} 14.
Bxf6 {[%clk 0:02:13.1]} 14... Bxf6 {[%clk 0:02:21.4]} 15. b4 {[%clk 0:02:14]}
15... axb4 {[%clk 0:02:16.9]} 16. axb4 {[%clk 0:02:00.2]} 16... Ne6 {[%clk
0:02:17.1]} 17. Ne4 {[%clk 0:01:55.9]} 17... Be7 {[%clk 0:02:15.2]} 18. c5
{[%clk 0:01:50.7]} 18... Rd8 {[%clk 0:01:51.4]} 19. Bc4 {[%clk 0:01:43.5]} 19...
Rxd1+ {[%clk 0:01:47.1]} 20. Rxd1 {[%clk 0:01:43.6]} 20... Kg7 {[%clk
0:01:43.6]} 21. h3 {[%clk 0:01:24.5]} 21... b5 {[%clk 0:01:37.4]} 22. Bb3 {[%clk
0:01:21.7]} 22... h6 {[%clk 0:01:32]} 23. Nd6 {[%clk 0:01:21.3]} 23... Bxd6
{[%clk 0:01:09.8]} 24. cxd6 {[%clk 0:01:19.7]} 1-0